bitfinex/quotes_BTCUSD_20250408
["timestamp","ask_amount","ask_price","bid_price","bid_amount"]
[1744113601267,0.352499,80002.0,80001.0,0.0471]
[1744113601478,0.01075394,80003.0,80001.0,0.095]
[1744113601714,0.003,80014.0,80007.0,0.012498]
[1744113601937,0.249978,80007.0,80002.0,0.14992]
[1744113602330,0.01092506,80007.0,80002.0,0.14992]
[1744113602562,0.54802788,80012.0,80003.0,0.13875764]
[1744113602563,0.012498,80012.0,80003.0,0.13875764]
[1744113602793,0.34,80013.0,80008.0,0.012498]
[1744113603026,0.01119599,80020.0,80018.0,0.262439]
[1744113603270,0.249881,80038.0,80022.0,0.012496]
[1744113603472,0.29806488,80060.0,80022.0,0.20289437]
[1744113603674,0.29806488,80060.0,80046.0,0.012492]
[1744113603675,0.249837,80052.0,80046.0,0.012492]
[1744113603881,0.3401684,80049.0,80047.0,0.14992]
[1744113604085,0.58985,80048.0,80047.0,0.14992]
[1744113604285,0.0001684,80049.0,80048.0,0.162492]
[1744113604402,0.0001684,80049.0,80048.0,0.28875064]
[1744113605006,0.0001684,80049.0,80048.0,0.71769149]
[1744113605267,0.0001684,80049.0,80048.0,0.726966]
[1744113605471,0.0001683,80075.0,80048.0,0.726966]
[1744113605472,0.0001683,80075.0,80069.0,0.249784]
[1744113605779,0.012488,80072.0,80070.0,0.37117864]
[1744113606314,0.262425,80074.0,80073.0,0.162488]
[1744113606315,0.000168,80074.0,80073.0,0.162488]
[1744113606515,0.012656,80074.0,80073.0,0.27625864]
[1744113606724,0.012656,80074.0,80073.0,0.00928951]
[1744113606917,0.000168,80074.0,80073.0,0.38851864]
[1744113607220,0.000168,80074.0,80073.0,0.95291864]
[1744113607390,1e-06,80079.0,80078.0,0.262243]
[1744113607588,1e-06,80079.0,80078.0,0.40304249]
[1744113607827,1e-06,80079.0,80078.0,0.81744249]
[1744113607989,5e-05,80100.0,80090.0,0.412204]
[1744113608169,0.012534,80100.0,80090.0,1.12539227]
[1744113608369,0.012485,80096.0,80090.0,1.12539227]
[1744113608617,5e-05,80100.0,80090.0,1.13993312]
[1744113608855,0.262177,80099.0,80090.0,1.13993312]
[1744113609021,5e-05,80100.0,80090.0,1.13993312]
[1744113609167,5e-05,80100.0,80090.0,0.97272912]
[1744113609168,0.262196,80093.0,80090.0,0.97272912]
[1744113609371,0.033485,80091.0,80090.0,0.96418827]
[1744113609649,0.033485,80091.0,80090.0,0.4683]
[1744113610027,0.033485,80091.0,80090.0,0.4204]
[1744113610230,0.49974364,80091.0,80090.0,1e-06]
[1744113610771,0.602256,80074.0,80073.0,2.8e-07]
[1744113611019,0.602313,80057.0,80056.0,0.10968616]
[1744113612233,0.608313,80057.0,80056.0,0.11068616]
[1744113612849,0.73457164,80057.0,80056.0,0.11068616]
[1744113613076,0.74057164,80057.0,80056.0,0.11168616]
[1744113613693,0.608313,80057.0,80056.0,0.11068616]
[1744113613980,0.012494,80034.0,80033.0,0.00041911]
[1744113614209,0.262387,80034.0,80033.0,0.00041911]
[1744113614408,0.262387,80034.0,80033.0,0.01000634]
[1744113614612,0.602387,80034.0,80033.0,0.00041911]
[1744113614867,0.72864564,80034.0,80033.0,1.1e-07]
[1744113615015,0.602387,80034.0,80033.0,1.1e-07]
[1744113615238,0.61356152,80034.0,80033.0,0.00200011]
[1744113616530,0.61656152,80034.0,80033.0,0.00200011]
[1744113616739,0.343,80034.0,80033.0,1.1e-07]
[1744113616940,0.355494,80034.0,80033.0,1.1e-07]
[1744113617464,0.356494,80034.0,80033.0,1.1e-07]
[1744113618173,0.345,80034.0,80033.0,0.26239011]
[1744113618368,0.004,80034.0,80033.0,0.43694875]
[1744113618502,0.004,80034.0,80033.0,0.4514896]
[1744113618708,0.012489,80065.0,80052.0,0.012491]
[1744113618936,0.01249,80058.0,80050.0,0.15068]
[1744113619146,0.24984,80051.0,80050.0,0.15068]
[1744113619298,0.26237,80040.0,80036.0,0.15]
[1744113619494,0.26236,80043.0,80036.0,0.15]
[1744113619495,0.26236,80043.0,80041.0,0.15068]
[1744113619818,0.012493,80042.0,80041.0,0.15068]
[1744113620044,0.012494,80037.0,80036.0,0.15]
[1744113620364,0.012493,80040.0,80036.0,0.27625864]
[1744113620506,0.012494,80037.0,80036.0,0.27625864]
[1744113621304,0.012493,80042.0,80037.0,0.012494]
[1744113621505,0.001,80043.0,80042.0,0.012493]
[1744113621733,0.012492,80047.0,80046.0,0.15]
[1744113621905,0.249846,80049.0,80046.0,0.27625864]
[1744113622145,0.262338,80049.0,80046.0,0.27625864]
[1744113622389,0.249804,80063.0,80055.0,0.012491]
[1744113622563,0.01249,80060.0,80057.0,0.0475]
[1744113622778,0.01249,80058.0,80057.0,0.0475]
[1744113622995,0.01249,80058.0,80057.0,0.00919397]
[1744113623158,0.012491,80052.0,80047.0,0.61258]
[1744113623365,0.262338,80049.0,80048.0,0.12625864]
[1744113623573,0.26232,80055.0,80048.0,0.12625864]
[1744113623769,0.004,80060.0,80051.0,0.012492]
[1744113623977,0.24976,80077.0,80061.0,0.01249]
[1744113624188,0.44621235,80090.0,80066.0,0.012489]
[1744113624189,0.249769,80074.0,80066.0,0.012489]
[1744113624391,0.262235,80081.0,80066.0,0.13874764]
[1744113624595,0.249769,80074.0,80066.0,0.13874764]
[1744113624796,0.0126574,80067.0,80066.0,0.12625864]
[1744113625088,0.2624474,80067.0,80066.0,0.12625864]
[1744113625291,0.2624474,80067.0,80066.0,0.12667877]
[1744113625901,0.0001684,80067.0,80066.0,0.12967877]
[1744113626106,0.0001684,80067.0,80066.0,0.15920614]
[1744113626316,0.0001684,80067.0,80066.0,0.61860862]
[1744113626535,0.0001684,80067.0,80066.0,0.64117318]
[1744113627159,0.0001684,80090.0,80089.0,0.262208]
[1744113627370,0.0001684,80090.0,80089.0,1.00154664]
[1744113627581,0.0001684,80090.0,80089.0,1.06478749]
[1744113627808,0.0001684,80090.0,80089.0,1.08735205]
[1744113628683,0.0001684,80090.0,80089.0,1.09660767]
[1744113628911,0.0001684,80090.0,80089.0,0.83439967]
[1744113629113,0.0011684,80090.0,80089.0,0.81917882]
[1744113629318,0.0011684,80090.0,80089.0,0.81605682]
[1744113629519,0.0001684,80090.0,80089.0,0.96669682]
[1744113629651,0.0041684,80090.0,80089.0,0.64173818]
[1744113629880,0.0011684,80090.0,80089.0,0.60486018]
[1744113630083,0.0011684,80090.0,80089.0,0.19046018]
[1744113630280,0.0011684,80090.0,80089.0,0.19446018]
[1744113630484,0.0136534,80090.0,80089.0,0.03456456]
[1744113630869,0.0136534,80090.0,80089.0,0.012]
[1744113631073,0.0136534,80090.0,80081.0,0.02256456]
[1744113631074,0.602231,80082.0,80081.0,0.02256456]
[1744113631274,0.72848964,80082.0,80081.0,0.02256456]
[1744113631845,0.72848964,80082.0,80081.0,0.01372912]
[1744113632016,0.352488,80071.0,80055.0,0.012491]
[1744113632221,0.352489,80067.0,80056.0,0.0091807]
[1744113632423,0.352489,80067.0,80052.0,0.15064]
[1744113632625,0.352489,80067.0,80056.0,0.249824]
[1744113632834,0.352489,80067.0,80054.0,0.249831]
[1744113633229,0.352489,80067.0,80052.0,0.15064]
[1744113633398,0.352489,80067.0,80054.0,0.24983]
[1744113633603,0.352489,80067.0,80056.0,0.249824]
[1744113633805,0.356489,80067.0,80053.0,0.00949821]
[1744113635056,0.359489,80067.0,80053.0,0.00949821]
[1744113635666,0.359489,80067.0,80048.0,0.400489]
[1744113635840,0.359489,80067.0,80048.0,0.15064]
[1744113636256,0.359489,80067.0,80050.0,0.012492]
[1744113636457,0.359489,80067.0,80052.0,0.249835]
[1744113636652,0.007,80067.0,80058.0,0.249815]
[1744113636862,0.007,80067.0,80056.0,0.012491]
[1744113636863,0.007,80067.0,80053.0,0.249831]
[1744113637062,0.269279,80067.0,80053.0,0.249831]
[1744113637312,0.269279,80067.0,80051.0,0.25934504]
[1744113637475,0.269279,80067.0,80053.0,0.249834]
[1744113637683,0.269279,80067.0,80059.0,0.249815]
[1744113638084,0.269279,80067.0,80045.0,0.249856]
[1744113638296,0.269279,80067.0,80050.0,0.249841]
[1744113638471,0.347,80067.0,80062.0,0.249803]
[1744113638669,0.347,80067.0,80065.0,0.012489]
[1744113638984,0.347,80067.0,80066.0,0.26270213]
[1744113639163,0.347,80067.0,80066.0,0.25021313]
[1744113639364,0.347,80067.0,80066.0,0.26270213]
[1744113639365,0.007,80067.0,80066.0,0.26270213]
[1744113639806,0.003,80067.0,80066.0,0.38896077]
[1744113640005,0.005,80067.0,80066.0,0.38896077]
[1744113640773,0.003,80067.0,80066.0,0.37647177]
[1744113640976,0.262225,80084.0,80066.0,0.37647177]
[1744113640977,0.012485,80092.0,80087.0,0.249728]
[1744113641234,0.249728,80087.0,80073.0,0.012488]
[1744113641456,0.012486,80087.0,80080.0,0.24975]
[1744113641850,0.249731,80086.0,80080.0,0.24975]
[1744113642054,0.352486,80085.0,80080.0,0.24975]
[1744113642254,0.352486,80085.0,80080.0,0.249749]
[1744113642255,0.012486,80084.0,80080.0,0.249749]
[1744113642414,0.012486,80084.0,80074.0,0.249766]
[1744113642415,0.34,80085.0,80074.0,0.012488]
[1744113642617,0.0001684,80090.0,80089.0,0.249722]
[1744113643064,0.0001684,80090.0,80089.0,0.262208]
[1744113643269,4e-07,80091.0,80090.0,0.012485]
[1744113643468,6e-07,80100.0,80099.0,0.15]
[1744113643664,0.88504886,80140.0,80099.0,0.15]
[1744113643665,9e-07,80104.0,80103.0,0.262161]
[1744113643898,0.63556486,80150.0,80138.0,0.249569]
[1744113644217,0.012477,80145.0,80135.0,0.249576]
[1744113644420,0.012477,80145.0,80128.0,0.15464]
[1744113644421,0.01248,80128.0,80117.0,0.15464]
[1744113644621,0.63548486,80137.0,80122.0,0.262098]
[1744113644762,0.249599,80129.0,80114.0,0.249643]
[1744113644998,0.012479,80131.0,80127.0,0.41482013]
[1744113645203,0.012478,80135.0,80128.0,0.02257874]
[1744113645391,0.34,80134.0,80128.0,0.27217874]
[1744113645592,0.34,80132.0,80128.0,0.27217874]
[1744113645793,0.262064,80133.0,80128.0,0.27217874]
[1744113646020,0.249591,80131.0,80129.0,0.02257874]
[1744113646236,0.352479,80130.0,80129.0,0.02257874]
[1744113646440,0.352479,80130.0,80127.0,0.41482013]
[1744113646441,0.35248,80128.0,80127.0,0.41482013]
[1744113646642,0.26208,80128.0,80127.0,0.41482013]
[1744113646797,0.012479,80130.0,80127.0,0.41482013]
[1744113646798,0.34,80130.0,80127.0,0.41482013]
[1744113647245,0.34,80130.0,80128.0,0.02354977]
[1744113647656,0.012479,80129.0,80128.0,0.02354977]
[1744113647857,0.602076,80129.0,80128.0,0.001]
[1744113648007,0.35248,80128.0,80127.0,0.41482013]
[1744113648472,0.35248,80128.0,80127.0,0.00042013]
[1744113648686,0.34,80128.0,80127.0,0.00042013]
[1744113648892,0.249585,80133.0,80127.0,0.00042013]
[1744113649064,0.012479,80130.0,80127.0,0.00042013]
[1744113649269,0.012478,80137.0,80127.0,0.00042013]
[1744113649270,0.012476,80149.0,80135.0,0.012478]
[1744113649470,0.016478,80139.0,80133.0,0.262064]
[1744113649671,0.34,80137.0,80131.0,0.249588]
[1744113649873,0.249588,80132.0,80127.0,0.15498013]
[1744113650075,0.004,80139.0,80129.0,0.27213806]
[1744113650275,0.004,80139.0,80127.0,0.00042013]
[1744113650276,0.014479,80133.0,80127.0,0.00042013]
[1744113650633,0.012479,80133.0,80127.0,0.00042013]
[1744113650806,0.249594,80130.0,80127.0,0.00042013]
[1744113651017,0.012479,80129.0,80127.0,0.00042013]
[1744113651228,0.262073,80130.0,80127.0,0.00042013]
[1744113651432,0.26208,80128.0,80127.0,0.00142013]
[1744113651627,0.60208,80128.0,80127.0,0.00142013]
[1744113651858,0.017478,80139.0,80129.0,0.012479]
[1744113652058,0.005,80139.0,80136.0,0.249575]
[1744113652237,0.005,80139.0,80136.0,0.38831164]
[1744113652497,0.004,80139.0,80136.0,0.4108395]
[1744113652711,0.004,80139.0,80136.0,0.1612645]
[1744113652914,0.26205,80137.0,80136.0,0.02252786]
[1744113653123,0.60205,80137.0,80136.0,0.02252786]
[1744113653829,0.342,80137.0,80136.0,0.02252786]
[1744113654032,0.002,80137.0,80136.0,0.28458086]
[1744113654378,0.002,80137.0,80136.0,0.02252786]
[1744113654767,0.26405,80137.0,80136.0,0.02252786]
[1744113654962,0.002,80137.0,80136.0,0.02252786]
[1744113655170,0.26405,80137.0,80136.0,0.02252786]
[1744113655886,0.002,80137.0,80136.0,0.02252786]
[1744113656494,0.014478,80137.0,80136.0,0.02252786]
[1744113657099,0.014478,80137.0,80134.0,0.4144]
[1744113657100,0.352478,80135.0,80134.0,0.4144]
[1744113657296,0.012479,80131.0,80127.0,0.00042013]
[1744113657504,0.262077,80129.0,80127.0,0.00042013]
[1744113657747,0.01248,80128.0,80127.0,0.00042013]
[1744113658322,0.26206,80134.0,80127.0,0.12667877]
[1744113658323,0.249588,80132.0,80127.0,0.12667877]
[1744113658549,0.249588,80132.0,80128.0,0.12625864]
[1744113658550,0.249594,80130.0,80128.0,0.12625864]
[1744113658755,0.012479,80129.0,80128.0,0.12625864]
[1744113659076,0.012479,80129.0,80127.0,0.00042013]
[1744113659077,0.26208,80128.0,80127.0,0.00042013]
[1744113659287,0.001,80128.0,80127.0,0.00042013]
[1744113659495,0.001,80128.0,80127.0,0.00242013]
[1744113659702,0.249594,80131.0,80127.0,0.00242013]
[1744113659915,0.249598,80129.0,80127.0,0.00042013]
[1744113660183,0.001,80129.0,80128.0,0.001]
[1744113660393,0.013479,80129.0,80128.0,0.001]
[1744113660602,0.001,80129.0,80128.0,0.37585864]
[1744113660811,0.001,80129.0,80128.0,0.12625864]
[1744113661005,0.001,80129.0,80128.0,0.53833864]
[1744113661414,0.589575,80137.0,80129.0,0.012479]
[1744113661415,0.012478,80135.0,80129.0,0.012479]
[1744113661624,0.012478,80135.0,80130.0,0.12625864]
[1744113661817,0.001,80131.0,80130.0,0.12625864]
[1744113662026,0.012479,80129.0,80128.0,0.15]
[1744113662399,0.26208,80128.0,80127.0,0.00042013]
[1744113663249,0.60208,80128.0,80127.0,0.00042013]
[1744113663849,0.60208,80128.0,80127.0,0.00242013]
[1744113664054,0.60208,80128.0,80127.0,0.00042013]
[1744113664252,0.72833864,80128.0,80127.0,1.3e-07]
[1744113664481,0.88865864,80128.0,80127.0,1.3e-07]
[1744113664863,0.88965864,80128.0,80127.0,1.3e-07]
[1744113665249,0.262194,80093.0,80092.0,0.022552]
[1744113665449,0.262194,80093.0,80080.0,0.048]
[1744113665450,0.262217,80086.0,80080.0,0.048]
[1744113665676,0.602217,80086.0,80085.0,2.2e-07]
[1744113665866,0.01249,80059.0,80056.0,0.00919387]
[1744113666059,0.012491,80057.0,80049.0,0.262338]
[1744113666263,0.012491,80057.0,80048.0,0.0003364]
[1744113666264,0.012491,80052.0,80048.0,0.0003364]
[1744113666680,0.34,80053.0,80048.0,0.0003364]
[1744113666861,0.012491,80052.0,80048.0,0.0003364]
[1744113667647,0.01290909,80052.0,80051.0,0.006]
[1744113668706,0.00041809,80052.0,80051.0,0.006]
[1744113668915,0.01290909,80052.0,80051.0,0.006]
[1744113669120,0.00041809,80052.0,80051.0,0.006]
[1744113669320,0.01390909,80052.0,80051.0,0.006]
[1744113671397,0.01290909,80052.0,80051.0,0.006]
[1744113671916,0.01390909,80052.0,80051.0,0.006]
[1744113672155,0.01390909,80052.0,80051.0,0.004]
[1744113672707,0.01290909,80052.0,80051.0,0.004]
[1744113673129,0.01390909,80052.0,80051.0,0.004]
[1744113673333,0.01390909,80052.0,80048.0,0.0003364]
[1744113673334,0.012492,80049.0,80048.0,4e-07]
[1744113673531,0.47875064,80049.0,80048.0,4e-07]
[1744113675862,0.48575064,80049.0,80048.0,4e-07]
[1744113676396,0.602387,80034.0,80033.0,4e-07]
[1744113676609,0.72864564,80034.0,80033.0,4e-07]
[1744113677158,0.602404,80029.0,80028.0,6e-07]
[1744113677386,0.72866264,80029.0,80028.0,6e-07]
[1744113677583,0.72866264,80029.0,80018.0,0.0003364]
[1744113677584,0.262437,80019.0,80018.0,4e-07]
[1744113677762,0.72869564,80019.0,80018.0,4e-07]
[1744113678162,0.72869564,80019.0,79998.0,0.0003366]
[1744113678163,0.0125,79999.0,79998.0,0.0003366]
[1744113678393,0.3525,79999.0,79998.0,0.0003366]
[1744113679025,0.35291757,79999.0,79998.0,0.0003366]
[1744113679954,0.00841757,79999.0,79998.0,0.0128366]
[1744113680097,0.00841757,79999.0,79998.0,0.0003366]
[1744113680296,0.02091757,79999.0,79998.0,0.0003366]
[1744113680648,0.27092057,79999.0,79998.0,0.0003366]
[1744113680849,0.27692057,79999.0,79998.0,0.0003366]
[1744113681258,0.60892057,79999.0,79998.0,0.0003366]
[1744113681472,0.60292057,79999.0,79998.0,0.0003366]
[1744113681664,0.60892057,79999.0,79998.0,0.0003366]
[1744113682639,0.73517921,79999.0,79998.0,0.0003366]
[1744113685088,0.72880364,79986.0,79985.0,0.0003362]
[1744113685904,0.73080364,79986.0,79985.0,0.0003362]
[1744113686085,0.73080364,79986.0,79977.0,0.06666667]
[1744113686086,0.602571,79978.0,79977.0,0.06666667]
[1744113686286,0.012505,79965.0,79952.0,0.1608964]
[1744113686660,0.602623,79962.0,79961.0,6e-07]
[1744113687037,0.72888164,79962.0,79961.0,6e-07]
[1744113687220,0.72888164,79962.0,79941.0,0.0304764]
[1744113687221,0.60266,79951.0,79941.0,0.0304764]
[1744113687445,0.012509,79938.0,79930.0,0.31224]
[1744113687607,0.262702,79938.0,79930.0,0.31224]
[1744113688175,0.602702,79938.0,79937.0,6e-07]
[1744113689610,0.602702,79938.0,79934.0,4e-07]
[1744113689852,0.602722,79932.0,79931.0,4e-07]
[1744113690131,0.01251,79930.0,79929.0,2e-07]
[1744113690598,0.47876864,79930.0,79929.0,2e-07]
[1744113691696,0.47976864,79930.0,79929.0,2e-07]
[1744113692956,0.012512,79919.0,79918.0,4e-07]
[1744113693174,0.72902364,79919.0,79918.0,4e-07]
[1744113694418,0.7294407,79919.0,79918.0,4e-07]
[1744113695194,0.60318206,79919.0,79918.0,4e-07]
[1744113695455,0.26318206,79919.0,79918.0,4e-07]
[1744113695714,0.3894407,79919.0,79918.0,4e-07]
[1744113698293,0.26318206,79919.0,79918.0,4e-07]
[1744113699587,0.00041706,79919.0,79918.0,4e-07]
[1744113699874,0.00041706,79919.0,79918.0,0.14079989]
[1744113700100,0.25067006,79919.0,79918.0,0.01454125]
[1744113700334,0.26318206,79919.0,79918.0,4e-07]
[1744113700576,0.00041706,79919.0,79918.0,4e-07]
[1744113700860,0.250079,79975.0,79965.0,0.012505]
[1744113701126,0.250084,79973.0,79964.0,0.250109]
[1744113701391,0.012503,79979.0,79973.0,0.250084]
[1744113701658,0.012504,79971.0,79964.0,0.250112]
[1744113702046,0.250111,79965.0,79963.0,0.00953103]
[1744113702049,0.012505,79964.0,79963.0,0.00953103]
[1744113702258,0.012506,79956.0,79953.0,0.3124]
[1744113702504,0.012505,79962.0,79953.0,0.32700897]
[1744113702724,0.2502876,79962.0,79956.0,0.012506]
[1744113702946,0.012506,79961.0,79956.0,0.01454085]
[1744113703154,0.25014,79955.0,79953.0,0.31246812]
[1744113703583,0.012507,79954.0,79953.0,0.31246812]
[1744113703813,0.262647,79955.0,79953.0,0.31246812]
[1744113704228,0.012507,79954.0,79953.0,0.31246812]
[1744113704652,0.012507,79954.0,79953.0,0.31646812]
[1744113704866,0.250134,79957.0,79953.0,0.32866107]
[1744113705073,0.001,79955.0,79953.0,0.32866107]
[1744113705491,0.26265,79954.0,79953.0,0.32166107]
[1744113705868,0.001,79954.0,79953.0,0.32866107]
[1744113706300,0.26365,79954.0,79953.0,0.32866107]
[1744113707044,0.262646,79956.0,79953.0,0.32566107]
[1744113707243,0.26265,79955.0,79953.0,0.32566107]
[1744113707450,0.012507,79954.0,79953.0,0.32666107]
[1744113707653,0.012507,79954.0,79953.0,0.32266107]
[1744113708059,0.012507,79954.0,79953.0,0.32166107]
[1744113708268,0.012507,79954.0,79953.0,0.32666107]
[1744113708682,0.012507,79954.0,79953.0,0.32166107]
[1744113708887,0.012507,79955.0,79953.0,0.32166107]
[1744113709096,0.26265,79954.0,79953.0,0.32566107]
[1744113709730,0.60265,79954.0,79953.0,0.17566107]
[1744113709948,0.60265,79954.0,79953.0,0.01326107]
[1744113710167,0.60265,79954.0,79953.0,0.00406812]
[1744113710561,0.60265,79954.0,79953.0,0.00306812]
[1744113710780,0.60265,79954.0,79953.0,6.812e-05]
[1744113710979,0.60265,79954.0,79953.0,0.00406812]
[1744113711419,0.62588039,79954.0,79953.0,6.812e-05]
[1744113711569,0.62888039,79954.0,79953.0,6.812e-05]
[1744113711897,0.63188039,79954.0,79953.0,6.812e-05]
[1744113717755,0.02923039,79954.0,79953.0,6.812e-05]
[1744113717959,0.04173739,79954.0,79953.0,0.01711012]
[1744113718160,0.04173739,79954.0,79953.0,0.01460897]
[1744113718568,0.018507,79954.0,79953.0,0.01460897]
[1744113718769,0.015507,79954.0,79953.0,0.01460897]
[1744113719035,0.250127,79960.0,79954.0,0.02704785]
[1744113719166,0.012506,79961.0,79956.0,0.01454085]
[1744113719167,0.012506,79957.0,79956.0,0.01454085]
[1744113719363,0.26264,79957.0,79956.0,0.14079949]
[1744113719988,0.012506,79956.0,79955.0,0.16148]
[1744113720212,0.012506,79956.0,79953.0,6.812e-05]
[1744113720213,0.352507,79954.0,79953.0,6.812e-05]
[1744113720415,0.352507,79954.0,79953.0,1.2e-07]
[1744113722149,0.34,79954.0,79953.0,1.2e-07]
[1744113722352,0.352507,79954.0,79953.0,1.2e-07]
[1744113722955,0.358507,79954.0,79953.0,1.2e-07]
[1744113723791,0.364507,79954.0,79953.0,1.2e-07]
[1744113724299,0.358507,79954.0,79953.0,1.2e-07]
[1744113724496,0.361507,79954.0,79953.0,1.2e-07]
[1744113724711,0.358507,79954.0,79953.0,1.2e-07]
[1744113725120,0.364507,79954.0,79953.0,1.2e-07]
[1744113725311,0.352507,79954.0,79953.0,1.2e-07]
[1744113725739,0.356507,79954.0,79953.0,1.2e-07]
[1744113727423,0.360507,79954.0,79953.0,1.2e-07]
[1744113727621,0.356507,79954.0,79953.0,1.2e-07]
[1744113727779,0.361507,79954.0,79953.0,1.2e-07]
[1744113728553,0.365507,79954.0,79953.0,1.2e-07]
[1744113730425,0.013,79954.0,79953.0,1.2e-07]
[1744113730624,0.013,79954.0,79953.0,0.13876576]
[1744113730901,0.013,79954.0,79953.0,0.12875989]
[1744113731302,0.025507,79954.0,79953.0,0.12625876]
[1744113731856,0.025507,79954.0,79953.0,0.17405876]
[1744113732276,0.016507,79954.0,79953.0,0.17405876]
[1744113732489,0.004,79954.0,79953.0,0.17405876]
[1744113732904,0.016507,79954.0,79953.0,0.17405876]
[1744113733102,0.019507,79954.0,79953.0,0.17405876]
[1744113733405,0.015507,79954.0,79953.0,0.17405876]
[1744113733817,0.358507,79954.0,79953.0,1.2e-07]
[1744113736451,0.006,79954.0,79953.0,0.13876576]
[1744113736673,0.006,79954.0,79953.0,0.6180078]
[1744113736880,0.006,79954.0,79953.0,0.61550661]
[1744113737128,0.0126706,79986.0,79961.0,0.42716785]
[1744113737334,0.0126706,79986.0,79961.0,2.12034649]
[1744113737335,0.0001686,79986.0,79961.0,2.12034649]
[1744113737536,0.0001686,79986.0,79985.0,0.262548]
[1744113737741,0.0001686,79986.0,79985.0,0.59808664]
[1744113737982,0.0001686,79986.0,79985.0,0.61262749]
[1744113738162,0.0126706,79986.0,79985.0,0.33553864]
[1744113738402,0.0126706,79986.0,79985.0,0.16148]
[1744113738658,0.2626,79969.0,79968.0,0.4624]
[1744113738858,0.2626,79969.0,79968.0,0.75013864]
[1744113739463,0.2626,79969.0,79968.0,0.75026354]
[1744113739678,0.262597,79971.0,79968.0,0.75026354]
[1744113739874,0.0031686,79986.0,79977.0,0.012503]
[1744113740077,0.012502,79985.0,79979.0,0.012503]
[1744113740251,0.0001686,79986.0,79984.0,0.15]
[1744113740453,0.2627166,79986.0,79985.0,0.12625864]
[1744113740982,0.2502116,79986.0,79985.0,0.12625864]
[1744113741180,0.012502,79985.0,79984.0,0.16144]
[1744113741942,0.0001686,79986.0,79984.0,0.43769864]
[1744113742144,0.0001686,79986.0,79985.0,0.4401069]
[1744113742349,0.0001686,79986.0,79985.0,0.17505864]
[1744113742949,0.0001686,79986.0,79985.0,0.42510464]
[1744113743152,0.0001686,79986.0,79985.0,0.86654749]
[1744113743349,0.06683527,79987.0,79986.0,0.48944285]
[1744113743350,0.00479777,79987.0,79986.0,0.48944285]
[1744113743621,0.004,79989.0,79988.0,0.02704185]
[1744113743825,0.004,79989.0,79988.0,0.16079999]
[1744113744028,0.0001685,80015.0,79988.0,0.16079999]
[1744113744029,0.0001685,80015.0,80009.0,0.42700985]
[1744113744207,0.0001685,80015.0,80009.0,2.16766849]
[1744113744370,0.2626345,80010.0,80009.0,1.84285864]
[1744113744764,0.2626345,80010.0,80009.0,1.68141864]
[1744113745012,0.2626345,80010.0,80009.0,1.84285864]
[1744113745288,0.2646345,80010.0,80009.0,1.84285864]
[1744113745503,0.26305212,80010.0,80009.0,1.84285864]
[1744113745919,0.26305212,80010.0,80009.0,1.85545184]
[1744113746468,0.26305212,80010.0,80009.0,1.5791932]
[1744113746671,0.00058612,80010.0,80009.0,1.70545184]
[1744113747114,0.00058612,80010.0,80009.0,1.85745184]
[1744113747516,0.00058612,80010.0,80009.0,1.86699269]
[1744113747828,0.00058612,80010.0,80009.0,1.97529069]
[1744113748030,0.00058612,80010.0,80009.0,2.31829069]
[1744113748236,0.0001685,80035.0,80033.0,0.42693085]
[1744113748443,0.0126625,80034.0,80033.0,0.85301864]
[1744113748652,0.012497,80019.0,80018.0,0.4144]
[1744113748870,0.262437,80019.0,80018.0,0.4144]
[1744113750550,0.264437,80019.0,80018.0,0.4144]
[1744113750754,0.26245,80015.0,80014.0,0.16236]
[1744113751182,0.60245,80015.0,80014.0,0.16236]
[1744113751384,0.602466,80010.0,80009.0,0.0001249]
[1744113752953,0.72872464,80010.0,80009.0,9e-07]
[1744113753359,0.602561,79981.0,79980.0,0.16236]
[1744113753533,0.602561,79981.0,79980.0,0.16277762]
[1744113753879,0.602561,79981.0,79980.0,0.00041762]
[1744113754580,0.602561,79981.0,79980.0,6.2e-07]
[1744113754802,0.62974285,79981.0,79980.0,6.2e-07]
[1744113755634,0.62574285,79981.0,79980.0,6.2e-07]
[1744113755831,0.607561,79981.0,79980.0,0.00100062]
[1744113756196,0.611561,79981.0,79980.0,0.00100062]
[1744113756525,0.607561,79981.0,79980.0,0.00100062]
[1744113756728,0.75221484,79981.0,79980.0,6.2e-07]
[1744113757202,0.75221484,79981.0,79964.0,0.99032]
[1744113757203,0.262614,79965.0,79964.0,0.99032]
[1744113757336,0.602614,79965.0,79964.0,0.9904449]
[1744113757762,0.602614,79965.0,79964.0,0.0001249]
[1744113758866,0.012504,79974.0,79964.0,0.0001249]
[1744113758867,0.012503,79980.0,79967.0,0.012505]
[1744113759221,0.012503,79980.0,79964.0,0.0126299]
[1744113759222,0.012505,79967.0,79964.0,0.0011249]
[1744113759436,0.012505,79965.0,79964.0,0.0011249]
[1744113759778,0.012505,79965.0,79964.0,0.0001249]
[1744113760234,0.262597,79970.0,79964.0,0.0001249]
[1744113760235,0.251064,79980.0,79971.0,0.012504]
[1744113760439,0.251064,79980.0,79979.0,0.250065]
[1744113760440,0.001,79980.0,79979.0,0.250065]
[1744113760640,0.262565,79980.0,79979.0,0.1624]
[1744113760942,0.264565,79980.0,79979.0,0.1624]
[1744113761166,0.262565,79980.0,79979.0,0.1624]
[1744113761584,0.266565,79980.0,79979.0,0.1624]
[1744113761784,0.262565,79980.0,79979.0,0.1624]
[1744113762075,0.603565,79980.0,79979.0,0.1624]
[1744113762253,0.602588,79973.0,79972.0,0.4144]
[1744113762647,0.602614,79965.0,79964.0,0.1625249]
[1744113764481,0.602614,79965.0,79964.0,0.0001249]
[1744113765809,0.602614,79965.0,79964.0,0.0011249]
[1744113768970,0.012505,79966.0,79964.0,0.12738354]
[1744113769146,0.012505,79966.0,79965.0,0.12625864]
[1744113769548,0.262613,79966.0,79965.0,0.12625864]
[1744113769770,0.012505,79965.0,79964.0,0.0011249]
[1744113770245,0.012505,79965.0,79964.0,0.0001249]
[1744113772261,0.012505,79965.0,79964.0,0.0011249]
[1744113773254,0.352505,79965.0,79964.0,0.0011249]
[1744113773929,0.34,79965.0,79964.0,0.0011249]
[1744113774462,0.012505,79968.0,79964.0,0.0011249]
[1744113774634,0.34,79966.0,79964.0,0.0011249]